fUST/lending_fUST_20240114
["ID","MTS","AMOUNT","RATE_DAILY","PERIOD"]
[311541930,1705207839816,-500.0,0.00030136,2]
[311541931,1705207839826,-500.0,0.00030136,2]
[311541932,1705207839836,-500.0,0.00030136,2]
[311541933,1705207839846,-500.0,0.00030136,2]
[311541934,1705207839856,-501.80714204,0.00030136,2]
[311541935,1705207839866,-500.0,0.00030136,2]
[311541936,1705207839875,-500.0,0.00030136,2]
[311541937,1705207839884,-500.0,0.00030136,2]
[311541938,1705207839895,-3379.97,0.00030136,2]
[311541939,1705207839905,-500.0,0.00030136,2]
[311541940,1705207839915,-183.47243345,0.00030136,2]
[311541941,1705207839924,-500.0,0.00030136,2]
[311541942,1705207839934,-500.0,0.00030136,2]
[311541943,1705207839943,-500.0,0.00030136,2]
[311541944,1705207839953,-950.88,0.00030136,2]
[311541945,1705207839965,-500.0,0.00030136,2]
[311541946,1705207839974,-500.0,0.00030136,2]
[311541947,1705207839984,-471.10965015,0.00030136,2]
[311541948,1705207839995,-501.42415586,0.00030136,2]
[311541949,1705207840004,-500.0,0.00030136,2]
[311541950,1705207840014,-502.39685917,0.00030136,2]
[311541951,1705207840023,-502.22175438,0.00030136,2]
[311541952,1705207840033,-505.9523721,0.00030136,2]
[311541953,1705207840042,-500.0,0.00030136,2]
[311541954,1705207840051,-500.0,0.00030136,2]
[311541955,1705207840061,-1285.99,0.00030136,2]
[311541956,1705207840071,-512.59062241,0.00030136,2]
[311541957,1705207840081,-500.0,0.00030136,2]
[311541958,1705207840090,-500.0,0.00030136,2]
[311541959,1705207840099,-500.0,0.00030136,2]
[311541960,1705207840110,-500.0,0.00030136,2]
[311541961,1705207840119,-500.0,0.00030136,2]
[311541962,1705207840128,-500.0,0.00030136,2]
[311541963,1705207840137,-600.15,0.00030136,2]
[311541964,1705207840147,-500.0,0.00030136,2]
[311541965,1705207840156,-500.0,0.00030136,2]
[311541966,1705207840166,-500.0,0.00030136,2]
[311541967,1705207840175,-153.0,0.00030137,2]
[311541968,1705207840185,-153.0,0.00030137,2]
[311541969,1705207840195,-153.0,0.00030137,2]
[311541971,1705207840204,-153.0,0.00030137,2]
[311541973,1705207840214,-153.0,0.00030137,2]
[311541974,1705207840223,-198.8089634,0.00030137,2]
[311541975,1705207840233,-153.0,0.00030137,2]
[311541976,1705207840242,-153.0,0.00030137,2]
[311541977,1705207840252,-153.0,0.00030137,2]
[311541978,1705207840261,-153.0,0.00030137,2]
[311541979,1705207840270,-198.8089634,0.00030137,2]
[311541980,1705207840279,-153.2911349,0.00030137,2]
[311541981,1705207840288,-198.8089634,0.00030137,2]
[311541982,1705207840298,-198.8089634,0.00030137,2]
[311541983,1705207840308,-198.8089634,0.00030137,2]
[311541984,1705207840317,-198.8089634,0.00030137,2]
[311541985,1705207840327,-198.8089634,0.00030137,2]
[311541986,1705207840336,-198.8089634,0.00030137,2]
[311541987,1705207840345,-198.8089634,0.00030137,2]
[311541988,1705207840354,-198.8089634,0.00030137,2]
[311541989,1705207840365,-198.8089634,0.00030137,2]
[311541990,1705207840377,-198.8089634,0.00030137,2]
[311541991,1705207840386,-198.8089634,0.00030137,2]
[311541992,1705207840395,-198.8089634,0.00030137,2]
[311541993,1705207840405,-198.8089634,0.00030137,2]
[311541994,1705207840414,-198.8089634,0.00030137,2]
[311541995,1705207840423,-500.0,0.00030299,2]
[311541996,1705207840433,-571.26671323,0.00030299,2]
[311541997,1705207840441,-500.0,0.00030299,2]
[311541998,1705207840450,-500.0,0.00030299,2]
[311541999,1705207840459,-343.96365382,0.00030299,2]
[311542000,1705207840468,-500.0,0.00030299,2]
[311542001,1705207840477,-500.0,0.00030299,2]
[311542002,1705207840487,-502.96832029,0.00030299,2]
[311542003,1705207840497,-500.0,0.00030299,2]
[311542004,1705207840506,-509.39793533,0.00030299,2]
[311542005,1705207840515,-500.0,0.00030299,2]
[311542006,1705207840524,-500.0,0.00030299,2]
[311542007,1705207840534,-500.0,0.00030299,2]
[311542008,1705207840543,-500.0,0.00030299,2]
[311542009,1705207840552,-500.0,0.00030299,2]
[311542010,1705207840562,-366.94048723,0.00030299,2]
[311542011,1705207840571,-500.0,0.00030299,2]
[311542012,1705207840580,-501.03600058,0.00030299,2]
[311542013,1705207840589,-602.72039454,0.00030299,2]
[311542014,1705207840599,-507.64365218,0.00030299,2]
[311542015,1705207840609,-500.0,0.00030299,2]
[311542016,1705207840619,-500.0,0.00030299,2]
[311542017,1705207840628,-500.0,0.00030299,2]
[311542018,1705207840638,-500.0,0.00030299,2]
[311542019,1705207840648,-500.0,0.00030299,2]
[311542020,1705207840657,-500.0,0.00030299,2]
[311542021,1705207840666,-500.0,0.00030299,2]
[311542022,1705207840676,-500.0,0.00030299,2]
[311542023,1705207840685,-500.0,0.00030299,2]
[311542024,1705207840694,-500.0,0.00030299,2]
[311542025,1705207840704,-500.0,0.00030299,2]
[311542026,1705207840714,-564.21902284,0.00030299,2]
[311542027,1705207840724,-500.0,0.00030299,2]
[311542028,1705207840733,-500.0,0.00030299,2]
[311542029,1705207840742,-500.0,0.00030299,2]
[311542030,1705207840753,-500.0,0.00030299,2]
[311542031,1705207840762,-489.49394302,0.00030299,2]
[311542032,1705207840771,-500.0,0.00030299,2]
[311542033,1705207840780,-506.61890384,0.00030299,2]
[311542034,1705207840791,-500.0,0.00030299,2]
[311542035,1705207840800,-500.0,0.00030299,2]
[311542036,1705207840809,-500.0,0.00030299,2]
[311542037,1705207840818,-500.0,0.00030299,2]
[311542038,1705207840827,-500.0,0.00030299,2]
[311542039,1705207840837,-500.0,0.00030299,2]
[311542040,1705207840846,-500.0,0.00030299,2]
[311542041,1705207840855,-500.0,0.00030299,2]
[311542042,1705207840864,-506.60600586,0.00030299,2]
[311542043,1705207840873,-500.0,0.00030299,2]
[311542044,1705207840884,-505.04437629,0.00030299,2]
[311542045,1705207840895,-500.0,0.00030299,2]
[311542046,1705207840905,-500.0,0.00030299,2]
[311542047,1705207840915,-500.0,0.00030299,2]
[311542048,1705207840925,-500.0,0.00030299,2]
[311542049,1705207840935,-500.0,0.00030299,2]
[311542050,1705207840946,-501.62544627,0.00030299,2]
[311542051,1705207840955,-500.0,0.00030299,2]
[311542053,1705207840965,-507.54880534,0.00030299,2]
[311542055,1705207840975,-688.1402264,0.00030299,2]
[311542056,1705207840985,-500.0,0.00030299,2]
[311542057,1705207840995,-500.0,0.00030299,2]
[311542058,1705207841004,-500.0,0.00030299,2]
[311542059,1705207841013,-501.51539704,0.00030299,2]
[311542060,1705207841022,-502.36498599,0.00030299,2]
[311542061,1705207841032,-198.8089634,0.000303,2]
[311542062,1705207841041,-198.8089634,0.000303,2]
[311542063,1705207841050,-198.8089634,0.000303,2]
[311542064,1705207841059,-198.8089634,0.000303,2]
[311542065,1705207841069,-198.8089634,0.000303,2]
[311542066,1705207841078,-198.8089634,0.000303,2]
[311542067,1705207841088,-198.8089634,0.000303,2]
[311542068,1705207841097,-198.8089634,0.000303,2]
[311542069,1705207841106,-198.8089634,0.000303,2]
[311542070,1705207841116,-198.8089634,0.000303,2]
[311542071,1705207841126,-198.8089634,0.000303,2]
[311542072,1705207841135,-198.8089634,0.000303,2]
[311542073,1705207841145,-198.8089634,0.000303,2]
[311542074,1705207841154,-198.8089634,0.000303,2]
[311542075,1705207841163,-198.8089634,0.000303,2]
[311542076,1705207841173,-198.8089634,0.000303,2]
[311542077,1705207841182,-198.8089634,0.000303,2]
[311542078,1705207841191,-198.8089634,0.000303,2]
[311542079,1705207841200,-198.8089634,0.000303,2]
[311542080,1705207841209,-4341.9697259,0.00030308,4]
[311542081,1705207841218,-166.1634504,0.00030308,4]
[311542082,1705207841227,-750.24229422,0.00030308,4]
[311542083,1705207841237,-202.88164408,0.00030309,4]
[311542084,1705207841246,-1175.22058429,0.00030309,4]
[311542085,1705207841255,-500.0,0.0003041,2]
[311542086,1705207841264,-500.0,0.0003041,2]
[311542087,1705207841274,-150.0,0.0003041,2]
[311542088,1705207841283,-500.0,0.0003041,2]
[311542089,1705207841293,-502.62560144,0.0003041,2]
[311542090,1705207841302,-507.87823536,0.0003041,2]
[311542091,1705207841313,-500.0,0.0003041,2]
[311542092,1705207841322,-736.80263219,0.0003041,2]
[311542093,1705207841331,-500.0,0.0003041,2]
[311542094,1705207841340,-500.0,0.0003041,2]
[311542095,1705207841350,-500.0,0.0003041,2]
[311542096,1705207841360,-500.0,0.0003041,2]
[311542097,1705207841370,-500.0,0.0003041,2]
[311542098,1705207841382,-500.0,0.0003041,2]
[311542099,1705207841391,-500.0,0.0003041,2]
[311542100,1705207841400,-516.90690765,0.0003041,2]
[311542101,1705207841409,-500.0,0.0003041,2]
[311542102,1705207841418,-500.0,0.0003041,2]
[311542103,1705207841426,-500.0,0.0003041,2]
[311542104,1705207841435,-500.0,0.0003041,2]
[311542105,1705207841444,-504.53261196,0.0003041,2]
[311542106,1705207841453,-509.09239575,0.0003041,2]
[311542107,1705207841461,-500.0,0.0003041,2]
[311542108,1705207841470,-504.23664267,0.0003041,2]
[311542109,1705207841479,-256.74192711,0.0003041,2]
[311542110,1705207841487,-502.85831635,0.0003041,2]
[311542111,1705207841496,-500.0,0.0003041,2]
[311542112,1705207841505,-503.21825677,0.0003041,2]
[311542113,1705207841514,-504.48431866,0.0003041,2]
[311542114,1705207841522,-500.0,0.0003041,2]
[311542115,1705207841531,-500.0,0.0003041,2]
[311542116,1705207841540,-500.0,0.0003041,2]
[311542117,1705207841549,-500.0,0.0003041,2]
[311542118,1705207841558,-500.0,0.0003041,2]
[311542119,1705207841566,-505.56719072,0.0003041,2]
[311542120,1705207841575,-501.81359818,0.0003041,2]
[311542121,1705207841584,-505.14811114,0.0003041,2]
[311542122,1705207841592,-503.56994745,0.0003041,2]
[311542123,1705207841602,-501.59793179,0.0003041,2]
[311542124,1705207841611,-504.9651415,0.0003041,2]
[311542125,1705207841620,-531.44538508,0.0003041,2]
[311542126,1705207841629,-551.66,0.0003041,2]
[311542127,1705207841727,-5038.9,0.0003041,2]
[311542128,1705207841736,-500.0,0.0003041,2]
[311542129,1705207841745,-500.09762926,0.0003041,2]
[311542130,1705207841754,-500.0,0.0003041,2]
[311542131,1705207841763,-1009.76,0.0003041,2]
[311542132,1705207841772,-503.01697234,0.0003041,2]
[311542133,1705207841782,-500.0,0.0003041,2]
[311542134,1705207841793,-502.28719276,0.0003041,2]
[311542135,1705207841801,-500.0,0.0003041,2]
[311542136,1705207841811,-500.0,0.0003041,2]
[311542137,1705207841821,-500.0,0.0003041,2]
[311542138,1705207841832,-502.98045114,0.0003041,2]
[311542139,1705207841841,-500.0,0.0003041,2]
[311542140,1705207841850,-500.0,0.0003041,2]
[311542141,1705207841859,-500.0,0.0003041,2]
[311542142,1705207841869,-500.0,0.0003041,2]
[311542143,1705207841878,-500.96510976,0.0003041,2]
[311542144,1705207841887,-500.0,0.0003041,2]
[311542145,1705207841896,-588.06,0.0003041,2]
[311542146,1705207841907,-500.0,0.0003041,2]
[311542147,1705207841917,-500.0,0.0003041,2]
[311542148,1705207841926,-510.12544456,0.0003041,2]
[311542149,1705207841937,-544.4970078,0.0003041,2]
[311542150,1705207841946,-501.35380754,0.0003041,2]
[311542151,1705207841955,-500.0,0.0003041,2]
[311542152,1705207841964,-505.31100691,0.0003041,2]
[311542153,1705207841973,-500.0,0.0003041,2]
[311542154,1705207841983,-505.65519792,0.0003041,2]
[311542155,1705207841994,-3379.97,0.0003041,2]
[311542156,1705207842004,-192.12346729,0.0003041,2]
[311542157,1705207842013,-366.37199732,0.0003041,2]
[311542158,1705207842023,-515.38428563,0.0003041,2]
[311542159,1705207842032,-500.0,0.0003041,2]
[311542160,1705207842041,-950.88,0.0003041,2]
[311542161,1705207842050,-506.32141266,0.0003041,2]
[311542162,1705207842060,-501.32386826,0.0003041,2]
[311542163,1705207842070,-500.0,0.0003041,2]
[311542164,1705207842080,-500.0,0.0003041,2]
[311542165,1705207842089,-194.96392291,0.0003041,2]
[311542166,1705207842099,-1285.99,0.0003041,2]
[311542167,1705207842109,-500.0,0.0003041,2]
[311542168,1705207842119,-503.10395864,0.0003041,2]
[311542169,1705207842128,-500.0,0.0003041,2]
[311542170,1705207842137,-500.0,0.0003041,2]
[311542171,1705207842148,-500.0,0.0003041,2]
[311542172,1705207842157,-600.15,0.0003041,2]
[311542173,1705207842166,-503.23287154,0.0003041,2]
[311542174,1705207842176,-505.41689106,0.0003041,2]
[311542175,1705207842186,-500.0,0.0003041,2]
[311542176,1705207842196,-500.0,0.00030573,2]
[311542177,1705207842205,-223.30147502,0.00030573,2]
[311542178,1705207842214,-500.0,0.00030573,2]
[311542179,1705207842223,-500.0,0.00030573,2]
[311542180,1705207842232,-500.0,0.00030573,2]
[311542181,1705207842241,-500.0,0.00030573,2]
[311542182,1705207842250,-509.56890864,0.00030573,2]
[311542183,1705207842259,-504.42336431,0.00030573,2]
[311542184,1705207842270,-500.0,0.00030573,2]
[311542185,1705207842280,-444.39396694,0.00030573,2]
[311542186,1705207842290,-500.0,0.00030573,2]
[311542187,1705207842300,-500.0,0.00030573,2]
[311542188,1705207842309,-501.80095131,0.00030573,2]
[311542189,1705207842318,-502.11758507,0.00030573,2]
[311542190,1705207842328,-500.0,0.00030573,2]
[311542191,1705207842338,-500.0,0.00030573,2]
[311542192,1705207842348,-516.07671333,0.00030573,2]
[311542193,1705207842357,-500.0,0.00030573,2]
[311542194,1705207842368,-504.86520712,0.00030573,2]
[311542195,1705207842382,-500.0,0.00030573,2]
[311542196,1705207842391,-503.75141497,0.00030573,2]
[311542197,1705207842400,-500.0,0.00030573,2]
[311542198,1705207842409,-517.08129978,0.00030573,2]
[311542199,1705207842418,-503.76283896,0.00030573,2]
[311542200,1705207842427,-502.20511041,0.00030573,2]
[311542201,1705207842436,-501.25426022,0.00030573,2]
[311542202,1705207842445,-503.43989046,0.00030573,2]
[311542203,1705207842455,-500.0,0.00030573,2]
[311542204,1705207842464,-505.04112074,0.00030573,2]
[311542205,1705207842474,-500.0,0.00030573,2]
[311542206,1705207842484,-500.0,0.00030573,2]
[311542207,1705207842492,-500.0,0.00030573,2]
[311542208,1705207842502,-500.0,0.00030573,2]
[311542209,1705207842511,-501.83031304,0.00030573,2]
[311542210,1705207842519,-406.36536227,0.00030573,2]
[311542211,1705207842529,-501.33867469,0.00030573,2]
[311542212,1705207842538,-500.0,0.00030573,2]
[311542213,1705207842548,-500.0,0.00030573,2]
[311542214,1705207842557,-500.0,0.00030573,2]
[311542215,1705207842566,-504.04864165,0.00030573,2]
[311542217,1705207842575,-500.0,0.00030573,2]
[311542218,1705207842583,-532.55426999,0.00030573,2]
[311542219,1705207842593,-225.42784318,0.00030573,2]
[311542220,1705207842602,-502.98322242,0.00030573,2]
[311542221,1705207842611,-2000.0,0.000306,2]
[311542222,1705207842620,-2000.0,0.0003061,2]
[311542223,1705207842630,-2646.971278,0.0003062,2]
[311542224,1705207842639,-507.31701283,0.00030684,2]
[311542225,1705207842648,-150.0,0.00030684,2]
[311542226,1705207842657,-511.37145532,0.00030684,2]
[311542227,1705207842666,-500.0,0.00030684,2]
[311542228,1705207842675,-500.0,0.00030684,2]
[311542229,1705207842684,-420.82874255,0.00030684,2]
[311542231,1705207842693,-500.0,0.00030684,2]
[311542233,1705207842703,-462.02122411,0.00030684,2]
[311542234,1705207842712,-501.81667094,0.00030684,2]
[311542235,1705207842721,-503.02436514,0.00030684,2]
[311542236,1705207842730,-500.0,0.00030684,2]
[311542237,1705207842739,-500.0,0.00030684,2]
[311542239,1705207842749,-551.66,0.00030684,2]
[311542240,1705207842759,-5038.9,0.00030684,2]
[311542241,1705207842767,-535.43465821,0.00030684,2]
[311542242,1705207842777,-1009.76,0.00030684,2]
[311542243,1705207842786,-527.2917001,0.00030684,2]
[311542244,1705207842795,-500.0,0.00030684,2]
[311542245,1705207842804,-504.05857982,0.00030684,2]
[311542246,1705207842813,-588.06,0.00030684,2]
[311542247,1705207842822,-505.05587139,0.00030684,2]
[311542248,1705207842831,-500.0,0.00030684,2]
[311542249,1705207842840,-3379.97,0.00030684,2]
[311542250,1705207842850,-950.88,0.00030684,2]
[311542251,1705207842859,-590.72678018,0.00030684,2]
[311542252,1705207842868,-1285.99,0.00030684,2]
[311542253,1705207842877,-500.0,0.00030684,2]
[311542254,1705207842886,-500.0,0.00030684,2]
[311542255,1705207842895,-600.15,0.00030684,2]
[311542256,1705207842904,-386.90018719,0.00030847,2]
[311542258,1705207842913,-502.95437604,0.00030847,2]
[311542259,1705207842923,-500.0,0.00030847,2]
[311542260,1705207842931,-455.3844703,0.00030847,2]
[311542261,1705207842941,-500.0,0.00030847,2]
[311542262,1705207842951,-500.0,0.00030847,2]
[311542263,1705207842960,-500.0,0.00030847,2]
[311542264,1705207842970,-500.0,0.00030847,2]
[311542266,1705207842979,-500.0,0.00030847,2]
[311542267,1705207842989,-506.14346699,0.00030847,2]
[311542268,1705207843000,-506.14158634,0.00030847,2]
[311542269,1705207843011,-522.91444163,0.00030847,2]
[311542270,1705207843020,-269.68073883,0.00030847,2]
[311542272,1705207843030,-500.0,0.00030847,2]
[311542273,1705207843038,-151.65771755,0.00030896,2]
[311542274,1705207843047,-10726.56663779,0.000309,2]
[311542275,1705207843056,-157.06359402,0.00030943,2]
[311542276,1705207843066,-8410.4420033,0.00030956,4]
[311542277,1705207843075,-1158.2624683,0.00030956,4]
[311542278,1705207843084,-582.70660437,0.00030957,4]
[311542279,1705207843093,-325.63251034,0.00030957,4]
[311542280,1705207843103,-618.55885143,0.00030957,4]
[311542281,1705207843113,-154.95351395,0.00030958,4]
[311542282,1705207843123,-154.95351395,0.00030958,2]
[311542283,1705207843133,-282.77222254,0.00030958,3]
[311542284,1705207843142,-246.32054593,0.00030958,5]
[311542285,1705207843151,-1921.70075971,0.00030958,4]
[311542286,1705207843160,-502.03551782,0.00030958,2]
[311542287,1705207843170,-150.0,0.00030958,2]
[311542288,1705207843179,-500.0,0.00030958,2]
[311542289,1705207843188,-413.75779932,0.00030958,2]
[311542290,1705207843197,-551.66,0.00030958,2]
[311542291,1705207843207,-5038.9,0.00030958,2]
[311542292,1705207843216,-410.71787832,0.00030958,2]
[311542293,1705207843226,-1009.76,0.00030958,2]
[311542294,1705207843235,-588.06,0.00030958,2]
[311542295,1705207843244,-3379.97,0.00030958,2]
[311542296,1705207843253,-950.88,0.00030958,2]
[311542297,1705207843262,-1285.99,0.00030958,2]
[311542298,1705207843271,-500.0,0.00030958,2]
[311542299,1705207843280,-500.0,0.00030958,2]
[311542300,1705207843289,-600.15,0.00030958,2]
[311542301,1705207843299,-794.0,0.0003097,30]
[311542302,1705207843308,-1382.0,0.0003097,30]
[311542303,1705207843317,-794.0,0.0003098,30]
[311542304,1705207843327,-1382.0,0.0003098,30]
[311542305,1705207843336,-794.0,0.0003099,30]
[311542306,1705207843345,-1382.0,0.0003099,30]
[311542307,1705207843355,-247.00167655,0.00030998,4]
[311542308,1705207843365,-155.26235345,0.00030998,4]
[311542309,1705207843377,-675.50518803,0.00030998,4]
[311542310,1705207843386,-155.08511295,0.00030998,4]
[311542311,1705207843395,-4328.89578152,0.00030998,4]
[311542312,1705207843554,-154.95351395,0.00026812,4]
[311542313,1705207843564,-500.0,0.00030136,2]
[311542314,1705207843574,-500.0,0.00030299,2]
[311542315,1705207843584,-500.0,0.0003041,2]
[311542316,1705207843593,-638.81029631,0.00030684,2]
[311542317,1705207843603,-5383.56890796,0.00030998,4]
[311542318,1705207843612,-2098.65172492,0.00030998,4]
[311542319,1705207843623,-2771.40266457,0.00030998,4]
[311542320,1705207843634,-2131.82961664,0.00030998,4]
[311542321,1705207843643,-155.4366454,0.00030998,4]
[311542322,1705207843652,-1212.00001212,0.00030998,2]
[311542323,1705207843662,-500.0,0.00030999,2]
[311542324,1705207843671,-414.62347258,0.00030999,2]
[311542325,1705207843680,-546.60649106,0.00030999,2]
[311542326,1705207843689,-500.0,0.00030999,2]
[311542327,1705207843698,-500.0,0.00030999,2]
[311542328,1705207843707,-221.76428289,0.00030999,2]
[311542329,1705207843716,-500.0,0.00030999,2]
[311542330,1705207843725,-500.0,0.00030999,2]
[311542331,1705207843734,-430.39734384,0.00030999,2]
[311542332,1705207843745,-69.60265616,0.00030999,2]
[311542333,1705207843754,-500.0,0.00030999,2]
[311542334,1705207843763,-303.89909697,0.00030999,2]
[311542335,1705207843771,-500.0,0.00030999,2]
[311542336,1705207843781,-500.0,0.00030999,2]
[311542337,1705207843790,-500.0,0.00030999,2]
[311542338,1705207843799,-399.60289695,0.00030999,2]
[311542339,1705207843808,-425.34584846,0.00030999,2]
[311542340,1705207843817,-500.0,0.00030999,2]
[311542341,1705207843826,-422.14867988,0.00030999,2]
[311542380,1705208607404,10000.0,0.0002,2]
[311542383,1705208664726,154.95351395,0.0002,2]
[311542384,1705208682735,155.09299303,0.0002,2]
[311542401,1705208948681,151.65771755,0.0002,2]
[311543105,1705209039149,-154.95351395,0.00026497,4]
[311543106,1705209039159,-17334.61207398,0.00026498,2]
[311543107,1705209039169,-167.996989,0.00026599,2]
[311543109,1705209039178,-1895.53389034,0.00026822,2]
[311543111,1705209039213,-4061.88573165,0.00026822,2]
[311543113,1705209039222,-170.81326,0.0002711,2]
[311543114,1705209039231,-507.13354579,0.00028,2]
[311543122,1705209039351,-6076.58,0.00028375,3]
[311543123,1705209039360,-5063.82,0.00028375,3]
[311543125,1705209039369,-1150.65008109,0.00028383,2]
[311543126,1705209039378,-155.18522897,0.00028384,2]
[311543128,1705209039387,-675.50518803,0.00028385,2]
[311543129,1705209039398,-155.26235345,0.00028385,2]
[311543130,1705209039407,-1158.2624683,0.00028385,2]
[311543132,1705209039416,-325.63251034,0.00028385,2]
[311543133,1705209039426,-582.70660437,0.00028385,2]
[311543135,1705209039435,-618.55885143,0.00028385,2]
[311543136,1705209039444,-166.1634504,0.00028385,2]
[311543137,1705209039453,-202.88164408,0.00028385,2]
[311543139,1705209039462,-1175.22058429,0.00028385,2]
[311543140,1705209039471,-4341.9697259,0.00028385,2]
[311543142,1705209039480,-750.24229422,0.00028385,2]
[311543143,1705209039490,-462.3510226,0.00028385,2]
[311543144,1705209039499,-162.42558552,0.00028385,2]
[311543146,1705209039508,-36993.81765305,0.00028385,2]
[311543147,1705209039517,-1742.54016348,0.00028385,2]
[311543148,1705209039526,-421.33175717,0.00028385,2]
[311543149,1705209039535,-2040.19945881,0.00028385,2]
[311543150,1705209039545,-155.08511295,0.00028386,2]
[311543151,1705209039554,-247.00167655,0.00028386,2]
[311543152,1705209039563,-8410.4420033,0.00028386,2]
[311543153,1705209039571,-49670.88239731,0.00028387,3]
[311543154,1705209039580,-11175.94853939,0.00028387,2]
[311543155,1705209039590,-182.3490549,0.00028387,2]
[311543156,1705209039599,-13814.47622305,0.00028387,3]
[311543157,1705209039608,-3453.61905576,0.00028387,2]
[311543158,1705209039617,-152.31739519,0.00028436,2]
[311543159,1705209039626,-198.8089634,0.00028656,2]
[311543160,1705209039635,-150.0,0.00028858,2]
[311543161,1705209039645,-155.0,0.000289,2]
[311543162,1705209039655,-2305.37797556,0.00029,2]
[311543163,1705209039664,-191.52087734,0.0002935,2]
[311543165,1705209039673,-9103.92623029,0.00029449,4]
[311543166,1705209039682,-224.9303038,0.000295,30]
[311543167,1705209039691,-157.59641185,0.00029573,2]
[311543168,1705209039700,-198.8089634,0.00029678,2]
[311543170,1705209039710,-198.8089634,0.00029678,2]
[311543171,1705209039718,-198.8089634,0.00029678,2]
[311543173,1705209039728,-198.8089634,0.00029778,2]
[311543174,1705209039737,-198.8089634,0.00029778,2]
[311543175,1705209039747,-198.8089634,0.00029778,2]
[311543177,1705209039756,-509.22464917,0.0002979,3]
[311543178,1705209039765,-41898.59782542,0.000299,2]
[311543180,1705209039775,-50375.61249,0.00029999,2]
[311543181,1705209039784,-900.48074021,0.0003,2]
[311543182,1705209039793,-6187.7426343,0.0003,2]
[311543184,1705209039802,-2190.2246157,0.0003,2]
[311543185,1705209039811,-121191.42753076,0.0003,2]
[311543187,1705209039820,-2032.6063135,0.0003,3]
[311543188,1705209039830,-18564.33703768,0.0003,2]
[311543189,1705209039839,-699.30852097,0.0003,2]
[311543191,1705209039848,-155.2340082,0.0003,4]
[311543192,1705209039857,-687.21028914,0.0003,4]
[311543194,1705209039867,-155.14831659,0.0003,4]
[311543195,1705209039877,-155.38396562,0.0003,2]
[311543196,1705209039886,-192.0,0.0003,2]
[311543198,1705209039897,-198.8089634,0.00030078,2]
[311543199,1705209039906,-198.8089634,0.00030078,2]
[311543201,1705209039915,-500.0,0.00030135,2]
[311543202,1705209039924,-500.0,0.00030135,2]
[311543203,1705209039934,-500.0,0.00030135,2]
[311543205,1705209039944,-382.62454374,0.00030135,2]
[311543206,1705209039954,-370.90226622,0.00030135,2]
[311543207,1705209039963,-500.0,0.00030135,2]
[311543209,1705209039972,-282.33945818,0.00030135,2]
[311543210,1705209039981,-500.0,0.00030135,2]
[311543212,1705209039991,-155.20750907,0.00030135,2]
[311543213,1705209040001,-500.0,0.00030135,2]
[311543214,1705209040010,-500.0,0.00030135,2]
[311543216,1705209040020,-500.0,0.00030135,2]
[311543217,1705209040029,-500.0,0.00030135,2]
[311543219,1705209040039,-500.0,0.00030136,2]
[311543220,1705209040048,-500.0,0.00030136,2]
[311543221,1705209040057,-500.0,0.00030136,2]
[311543223,1705209040066,-500.0,0.00030136,2]
[311543224,1705209040075,-516.90690765,0.00030136,2]
[311543226,1705209040084,-500.0,0.00030136,2]
[311543227,1705209040094,-500.0,0.00030136,2]
[311543228,1705209040103,-500.0,0.00030136,2]
[311543230,1705209040113,-500.0,0.00030136,2]
[311543231,1705209040122,-500.0,0.00030136,2]
[311543233,1705209040131,-504.53261196,0.00030136,2]
[311543234,1705209040140,-509.09239575,0.00030136,2]
[311543235,1705209040150,-500.0,0.00030136,2]
[311543237,1705209040159,-256.74192711,0.00030136,2]